[Event "Live Chess"]
[Site "Chess.com"]
[Date "2023.05.21"]
[Round "-"]
[White "KeithArkell"]
[Black "Bakunian2022"]
[Result "1-0"]
[WhiteElo "2556"]
[BlackElo "761"]
[TimeControl "300"]
[EndTime "21:18:50 PDT"]
[Termination "KeithArkell won by checkmate"]

1. d4 {[%clk 0:04:56.8]} 1... d5 {[%clk 0:04:58.2]} 2. Nf3 {[%clk 0:04:55.9]}
2... Bg4 {[%clk 0:04:52.2]} 3. c4 {[%clk 0:04:55.8]} 3... c6 {[%clk 0:04:48]} 4.
Ne5 {[%clk 0:04:55.7]} 4... e6 {[%clk 0:04:32.4]} 5. Nxg4 {[%clk 0:04:55.6]}
5... Nd7 {[%clk 0:04:26]} 6. cxd5 {[%clk 0:04:55.5]} 6... cxd5 {[%clk 0:04:25]}
7. Ne5 {[%clk 0:04:54.4]} 7... Ngf6 {[%clk 0:04:20.7]} 8. Bg5 {[%clk 0:04:52]}
8... Be7 {[%clk 0:04:17.3]} 9. e3 {[%clk 0:04:49.2]} 9... O-O {[%clk 0:04:14]}
10. Nc3 {[%clk 0:04:45.7]} 10... h6 {[%clk 0:04:12.5]} 11. Nxd7 {[%clk
0:04:44.2]} 11... Qxd7 {[%clk 0:04:10.7]} 12. Bxf6 {[%clk 0:04:43.5]} 12... Bxf6
{[%clk 0:04:07.9]} 13. Bb5 {[%clk 0:04:42.2]} 13... Qc7 {[%clk 0:04:04]} 14. O-O
{[%clk 0:04:40.8]} 14... Rad8 {[%clk 0:03:51.2]} 15. Rc1 {[%clk 0:04:38.3]}
15... Qb8 {[%clk 0:03:37.2]} 16. Bd3 {[%clk 0:04:36.1]} 16... e5 {[%clk
0:03:34.3]} 17. dxe5 {[%clk 0:04:34.7]} 17... Bxe5 {[%clk 0:03:33.2]} 18. g3
{[%clk 0:04:34.2]} 18... d4 {[%clk 0:03:22.6]} 19. exd4 {[%clk 0:04:33.5]} 19...
Rxd4 {[%clk 0:03:18.9]} 20. Qc2 {[%clk 0:04:32.1]} 20... h5 {[%clk 0:03:04.1]}
21. Rfd1 {[%clk 0:04:28.7]} 21... h4 {[%clk 0:03:00.4]} 22. Bh7+ {[%clk
0:04:27.4]} 22... Kh8 {[%clk 0:02:57.2]} 23. Rxd4 {[%clk 0:04:25.5]} 23... hxg3
{[%clk 0:02:53.6]} 24. Rh4 {[%clk 0:04:20]} 24... gxh2+ {[%clk 0:02:43.8]} 25.
Kh1 {[%clk 0:04:19]} 25... g6 {[%clk 0:02:30.4]} 26. Bxg6+ {[%clk 0:04:15.3]}
26... Kg7 {[%clk 0:02:28.9]} 27. Rh7+ {[%clk 0:04:12.1]} 27... Kf6 {[%clk
0:02:26.6]} 28. Nd5+ {[%clk 0:04:08.9]} 28... Ke6 {[%clk 0:02:23.6]} 29. Bf5+
{[%clk 0:04:02.3]} 29... Kxd5 {[%clk 0:02:19.8]} 30. Qc5# {[%clk 0:04:01.1]} 1-0

[Event "Live Chess"]
[Site "Chess.com"]
[Date "2023.05.21"]
[Round "-"]
[White "ExIsambard"]
[Black "Doge_Dandolo"]
[Result "0-1"]
[WhiteElo "1918"]
[BlackElo "1930"]
[TimeControl "300"]
[EndTime "21:19:26 PDT"]
[Termination "Doge_Dandolo won on time"]

1. d4 {[%clk 0:04:56.5]} 1... d5 {[%clk 0:04:58.8]} 2. Bg5 {[%clk 0:04:54.9]}
2... c6 {[%clk 0:04:54.4]} 3. e3 {[%clk 0:04:53.5]} 3... Qb6 {[%clk 0:04:53.2]}
4. b3 {[%clk 0:04:52.3]} 4... Bf5 {[%clk 0:04:51.5]} 5. Nf3 {[%clk 0:04:50.4]}
5... e6 {[%clk 0:04:49.8]} 6. Nh4 {[%clk 0:04:47.1]} 6... Bg6 {[%clk 0:04:48.3]}
7. Nxg6 {[%clk 0:04:46.1]} 7... hxg6 {[%clk 0:04:47.2]} 8. Bd3 {[%clk 0:04:44]}
8... Nf6 {[%clk 0:04:45.5]} 9. Nd2 {[%clk 0:04:42.2]} 9... Nbd7 {[%clk 0:04:44]}
10. Qe2 {[%clk 0:04:39.8]} 10... Bd6 {[%clk 0:04:42.4]} 11. h4 {[%clk
0:04:30.6]} 11... Qa5 {[%clk 0:04:40.6]} 12. O-O {[%clk 0:04:18.6]} 12... O-O
{[%clk 0:04:32.7]} 13. c4 {[%clk 0:04:17.1]} 13... dxc4 {[%clk 0:04:26.7]} 14.
Nxc4 {[%clk 0:04:15.6]} 14... Qc7 {[%clk 0:04:24]} 15. Nxd6 {[%clk 0:04:13.1]}
15... Qxd6 {[%clk 0:04:23.1]} 16. Bf4 {[%clk 0:04:12.3]} 16... Qd5 {[%clk
0:04:22.3]} 17. Bg5 {[%clk 0:04:00.2]} 17... e5 {[%clk 0:04:17.3]} 18. Bc4
{[%clk 0:03:50.9]} 18... Qd6 {[%clk 0:04:14]} 19. Rad1 {[%clk 0:03:46.8]} 19...
Rfe8 {[%clk 0:04:10.3]} 20. Bxf6 {[%clk 0:03:33.4]} 20... Nxf6 {[%clk
0:04:07.2]} 21. dxe5 {[%clk 0:03:22.6]} 21... Qxe5 {[%clk 0:04:05.2]} 22. Qf3
{[%clk 0:03:14.2]} 22... Rad8 {[%clk 0:03:51.9]} 23. a4 {[%clk 0:03:09.9]} 23...
b5 {[%clk 0:03:31.6]} 24. axb5 {[%clk 0:03:08]} 24... cxb5 {[%clk 0:03:30.5]}
25. Rxd8 {[%clk 0:02:38.9]} 25... Rxd8 {[%clk 0:03:28.4]} 26. Be2 {[%clk
0:02:38]} 26... a5 {[%clk 0:03:22.7]} 27. Qb7 {[%clk 0:02:32.6]} 27... a4 {[%clk
0:03:18.5]} 28. bxa4 {[%clk 0:02:31.1]} 28... bxa4 {[%clk 0:03:17.3]} 29. Bc4
{[%clk 0:02:20.4]} 29... Qe8 {[%clk 0:03:07.9]} 30. Ra1 {[%clk 0:02:14.9]} 30...
Rb8 {[%clk 0:03:06.3]} 31. Bxf7+ {[%clk 0:02:04.1]} 31... Kf8 {[%clk 0:03:00.9]}
32. Bxe8 {[%clk 0:01:54.8]} 32... Rxb7 {[%clk 0:02:58.8]} 33. Bxg6 {[%clk
0:01:51.6]} 33... Ra7 {[%clk 0:02:56.4]} 34. Ra3 {[%clk 0:01:34.2]} 34... Nd5
{[%clk 0:02:49.1]} 35. Bc2 {[%clk 0:01:29.4]} 35... Nb6 {[%clk 0:02:47.1]} 36.
Kf1 {[%clk 0:01:26]} 36... Ke7 {[%clk 0:02:44.8]} 37. Ke2 {[%clk 0:01:22.4]}
37... Kd6 {[%clk 0:02:43.2]} 38. Kd3 {[%clk 0:01:15.3]} 38... Kc5 {[%clk
0:02:41.7]} 39. Rc3+ {[%clk 0:01:12.6]} 39... Kb4 {[%clk 0:02:38.4]} 40. Rc6
{[%clk 0:01:09.1]} 40... Kb5 {[%clk 0:02:27.1]} 41. Bxa4+ {[%clk 0:00:46.2]}
41... Nxa4 {[%clk 0:02:21.8]} 42. Rg6 {[%clk 0:00:44.4]} 42... Kc5 {[%clk
0:02:17.7]} 43. Ke4 {[%clk 0:00:43.4]} 43... Nc3+ {[%clk 0:02:14.8]} 44. Kf4
{[%clk 0:00:41.4]} 44... Kd5 {[%clk 0:02:12]} 45. g4 {[%clk 0:00:39.1]} 45...
Ne4 {[%clk 0:02:05.1]} 46. f3 {[%clk 0:00:37.4]} 46... Nd2 {[%clk 0:02:00.6]}
47. e4+ {[%clk 0:00:35.1]} 47... Kd4 {[%clk 0:01:58.2]} 48. Rd6+ {[%clk
0:00:33.1]} 48... Kc3 {[%clk 0:01:55.6]} 49. e5 {[%clk 0:00:32.2]} 49... Ra4+
{[%clk 0:01:49.7]} 50. Ke3 {[%clk 0:00:28.8]} 50... Nc4+ {[%clk 0:01:47.9]} 51.
Kf2 {[%clk 0:00:25.3]} 51... Nxd6 {[%clk 0:01:45.3]} 52. exd6 {[%clk 0:00:25.1]}
52... Rd4 {[%clk 0:01:44.9]} 53. d7 {[%clk 0:00:24.1]} 53... Rxd7 {[%clk
0:01:42.9]} 54. Ke3 {[%clk 0:00:23.9]} 54... Re7+ {[%clk 0:01:39.4]} 55. Kf4
{[%clk 0:00:23.1]} 55... Kd4 {[%clk 0:01:38.6]} 56. Kg5 {[%clk 0:00:22.1]} 56...
Ke3 {[%clk 0:01:35.5]} 57. f4 {[%clk 0:00:21.3]} 57... Kf3 {[%clk 0:01:32.2]}
58. f5 {[%clk 0:00:20.5]} 58... Re4 {[%clk 0:01:28.7]} 59. f6 {[%clk 0:00:16]}
59... Rxg4+ {[%clk 0:01:24]} 60. Kf5 {[%clk 0:00:13.7]} 60... gxf6 {[%clk
0:01:21.4]} 61. h5 {[%clk 0:00:12.9]} 61... Rh4 {[%clk 0:01:18.2]} 62. Kxf6
{[%clk 0:00:11.1]} 62... Rxh5 {[%clk 0:01:17.2]} 63. Kg6 {[%clk 0:00:10.2]}
63... Rb5 {[%clk 0:01:15.7]} 64. Kf6 {[%clk 0:00:09]} 64... Ke4 {[%clk
0:01:14.2]} 65. Ke6 {[%clk 0:00:08.4]} 65... Rb6+ {[%clk 0:01:13]} 66. Kd7
{[%clk 0:00:07.5]} 66... Kd5 {[%clk 0:01:11.5]} 67. Kc7 {[%clk 0:00:06.8]} 67...
Rh6 {[%clk 0:01:10]} 68. Kd7 {[%clk 0:00:06]} 68... Rh7+ {[%clk 0:01:08.6]} 69.
Ke8 {[%clk 0:00:04.1]} 69... Ke6 {[%clk 0:01:07.5]} 70. Kf8 {[%clk 0:00:02.6]}
70... Kf6 {[%clk 0:01:05.6]} 71. Ke8 {[%clk 0:00:00.7]} 71... Rg7 {[%clk
0:01:03.5]} 0-1

[Event "Live Chess"]
[Site "Chess.com"]
[Date "2023.05.21"]
[Round "-"]
[White "Long1968"]
[Black "mirandaasilva"]
[Result "0-1"]
[WhiteElo "1060"]
[BlackElo "1687"]
[TimeControl "300"]
[EndTime "21:20:02 PDT"]
[Termination "mirandaasilva won on time"]

1. e4 {[%clk 0:04:56.9]} 1... e6 {[%clk 0:04:59.9]} 2. d4 {[%clk 0:04:54.8]}
2... d5 {[%clk 0:04:59.8]} 3. Nc3 {[%clk 0:04:52.5]} 3... dxe4 {[%clk
0:04:58.5]} 4. Nxe4 {[%clk 0:04:50.3]} 4... Bd7 {[%clk 0:04:58.4]} 5. Bd3 {[%clk
0:04:42.8]} 5... Nf6 {[%clk 0:04:56.7]} 6. Qe2 {[%clk 0:04:39.8]} 6... Bc6
{[%clk 0:04:55.2]} 7. Bg5 {[%clk 0:04:15.8]} 7... Nbd7 {[%clk 0:04:51.1]} 8. Nf3
{[%clk 0:04:07.3]} 8... Be7 {[%clk 0:04:45.9]} 9. Nxf6+ {[%clk 0:03:52.9]} 9...
Nxf6 {[%clk 0:04:42.7]} 10. c3 {[%clk 0:03:43.5]} 10... h6 {[%clk 0:04:33.8]}
11. Bh4 {[%clk 0:03:31.8]} 11... Nh5 {[%clk 0:04:01.2]} 12. Bg3 {[%clk
0:03:11.4]} 12... Nxg3 {[%clk 0:03:59]} 13. hxg3 {[%clk 0:03:07.3]} 13... Bf6
{[%clk 0:03:43.6]} 14. O-O-O {[%clk 0:02:45.4]} 14... Qd5 {[%clk 0:03:28.1]} 15.
c4 {[%clk 0:02:11.5]} 15... Qa5 {[%clk 0:03:24.7]} 16. b3 {[%clk 0:02:00]} 16...
O-O-O {[%clk 0:03:12.3]} 17. Qb2 {[%clk 0:01:25.5]} 17... Bxf3 {[%clk
0:03:02.5]} 18. gxf3 {[%clk 0:01:18.5]} 18... Rxd4 {[%clk 0:03:02.4]} 19. b4
{[%clk 0:00:32.3]} 19... Rxc4+ {[%clk 0:02:43]} 20. Bxc4 {[%clk 0:00:17.2]}
20... Bxb2+ {[%clk 0:02:40.2]} 21. Kxb2 {[%clk 0:00:08.5]} 21... Qxb4+ {[%clk
0:02:40.1]} 22. Bb3 {[%clk 0:00:05.8]} 22... a5 {[%clk 0:02:36]} 0-1

[Event "Live Chess"]
[Site "Chess.com"]
[Date "2023.05.21"]
[Round "-"]
[White "raminguy"]
[Black "ViktorTheCoolBoy"]
[Result "0-1"]
[WhiteElo "1950"]
[BlackElo "2477"]
[TimeControl "300"]
[EndTime "21:20:28 PDT"]
[Termination "ViktorTheCoolBoy won by resignation"]

1. d4 {[%clk 0:04:58]} 1... e6 {[%clk 0:04:58.8]} 2. c4 {[%clk 0:04:56.4]} 2...
Bb4+ {[%clk 0:04:55.7]} 3. Bd2 {[%clk 0:04:54.1]} 3... Bxd2+ {[%clk 0:04:54.6]}
4. Nxd2 {[%clk 0:04:52.3]} 4... Nf6 {[%clk 0:04:54]} 5. Ngf3 {[%clk 0:04:50.6]}
5... d6 {[%clk 0:04:53]} 6. e4 {[%clk 0:04:49]} 6... O-O {[%clk 0:04:50.8]} 7.
Bd3 {[%clk 0:04:47.6]} 7... e5 {[%clk 0:04:38.6]} 8. O-O {[%clk 0:04:44.6]} 8...
Nc6 {[%clk 0:04:36.8]} 9. d5 {[%clk 0:04:39.9]} 9... Ne7 {[%clk 0:04:34.9]} 10.
Ne1 {[%clk 0:04:25.2]} 10... Ng6 {[%clk 0:04:33.6]} 11. g3 {[%clk 0:04:22.6]}
11... Bh3 {[%clk 0:04:31.2]} 12. Ng2 {[%clk 0:04:21.3]} 12... h5 {[%clk
0:04:25.3]} 13. f4 {[%clk 0:04:19.9]} 13... Ng4 {[%clk 0:04:12.4]} 14. Qf3
{[%clk 0:04:09.3]} 14... exf4 {[%clk 0:04:07.6]} 15. gxf4 {[%clk 0:04:04]} 15...
Bxg2 {[%clk 0:04:06.7]} 16. Kxg2 {[%clk 0:04:00.3]} 16... Nh4+ {[%clk
0:04:05.1]} 0-1

[Event "Live Chess"]
[Site "Chess.com"]
[Date "2023.05.21"]
[Round "-"]
[White "yarek"]
[Black "Ayush_prahlad_Gupta"]
[Result "0-1"]
[WhiteElo "1862"]
[BlackElo "1774"]
[TimeControl "300"]
[EndTime "21:20:53 PDT"]
[Termination "Ayush_prahlad_Gupta won by resignation"]

1. e4 {[%clk 0:04:56.3]} 1... e5 {[%clk 0:04:59.7]} 2. Nf3 {[%clk 0:04:54.3]}
2... Nc6 {[%clk 0:04:59.4]} 3. Bc4 {[%clk 0:04:52.6]} 3... Bc5 {[%clk
0:04:58.7]} 4. c3 {[%clk 0:04:50.9]} 4... d6 {[%clk 0:04:57.9]} 5. d4 {[%clk
0:04:49.3]} 5... exd4 {[%clk 0:04:55.8]} 6. cxd4 {[%clk 0:04:48.2]} 6... Bb6
{[%clk 0:04:54.8]} 7. h3 {[%clk 0:04:42.4]} 7... Nf6 {[%clk 0:04:51.9]} 8. Nc3
{[%clk 0:04:39.6]} 8... O-O {[%clk 0:04:50.4]} 9. O-O {[%clk 0:04:37.3]} 9...
Na5 {[%clk 0:04:48.4]} 10. Bd3 {[%clk 0:04:32.1]} 10... c5 {[%clk 0:04:46.9]}
11. d5 {[%clk 0:04:24.5]} 11... c4 {[%clk 0:04:37.5]} 12. Bc2 {[%clk 0:04:20.5]}
12... Bc5 {[%clk 0:04:27.8]} 13. Na4 {[%clk 0:04:02]} 13... b5 {[%clk
0:04:23.5]} 14. Nxc5 {[%clk 0:03:59.3]} 14... dxc5 {[%clk 0:04:23.4]} 15. Bg5
{[%clk 0:03:52.2]} 15... Qb6 {[%clk 0:04:19]} 16. e5 {[%clk 0:03:44]} 16... Nd7
{[%clk 0:04:16.7]} 17. Be7 {[%clk 0:03:35.9]} 17... Re8 {[%clk 0:04:14.7]} 18.
Bxh7+ {[%clk 0:03:03.7]} 18... Kh8 {[%clk 0:04:10.9]} 19. d6 {[%clk 0:02:52.9]}
19... Nc6 {[%clk 0:04:05]} 20. Ng5 {[%clk 0:02:48.9]} 20... Nxe7 {[%clk
0:04:04]} 21. Nxf7+ {[%clk 0:02:42.3]} 21... Kxh7 {[%clk 0:04:00.8]} 22. Qh5+
{[%clk 0:02:41.8]} 22... Kg8 {[%clk 0:03:58.6]} 23. e6 {[%clk 0:02:34.3]} 23...
Ng6 {[%clk 0:03:45.5]} 24. Qxg6 {[%clk 0:02:30.8]} 24... Nf6 {[%clk 0:03:37.6]}
25. Nh6+ {[%clk 0:02:22]} 25... Kh8 {[%clk 0:03:33]} 26. Qxe8+ {[%clk
0:02:18.7]} 26... Nxe8 {[%clk 0:03:30.2]} 27. d7 {[%clk 0:02:10.9]} 27... Bxd7
{[%clk 0:03:25.9]} 28. exd7 {[%clk 0:02:09.3]} 28... Nf6 {[%clk 0:03:25]} 29.
Rad1 {[%clk 0:02:01.8]} 29... gxh6 {[%clk 0:03:22.4]} 0-1

[Event "Live Chess"]
[Site "Chess.com"]
[Date "2023.05.21"]
[Round "-"]
[White "chessfiction"]
[Black "matt1979"]
[Result "1-0"]
[WhiteElo "2364"]
[BlackElo "1493"]
[TimeControl "300"]
[EndTime "21:21:09 PDT"]
[Termination "chessfiction won by resignation"]

1. e4 {[%clk 0:04:58.4]} 1... d6 {[%clk 0:04:56]} 2. Bc4 {[%clk 0:04:57.5]} 2...
Nf6 {[%clk 0:04:54]} 3. Nc3 {[%clk 0:04:56.2]} 3... Nbd7 {[%clk 0:04:48]} 4. f4
{[%clk 0:04:55.5]} 4... e5 {[%clk 0:04:46.1]} 5. Nf3 {[%clk 0:04:54.9]} 5... c6
{[%clk 0:04:38.3]} 6. O-O {[%clk 0:04:54.2]} 6... Be7 {[%clk 0:04:33.9]} 7. d4
{[%clk 0:04:49.5]} 7... O-O {[%clk 0:04:28.9]} 8. Kh1 {[%clk 0:04:47.3]} 8...
exd4 {[%clk 0:04:22.9]} 9. Nxd4 {[%clk 0:04:45.9]} 9... Qc7 {[%clk 0:04:18.5]}
10. Nf5 {[%clk 0:04:44]} 10... Re8 {[%clk 0:04:13.9]} 11. Qf3 {[%clk 0:04:42.5]}
11... Nb6 {[%clk 0:04:08.6]} 12. Bb3 {[%clk 0:04:37.2]} 12... Bxf5 {[%clk
0:04:06.2]} 13. exf5 {[%clk 0:04:37.1]} 13... d5 {[%clk 0:03:54.8]} 14. g4
{[%clk 0:04:35.9]} 14... Bd6 {[%clk 0:03:35.7]} 15. g5 {[%clk 0:04:27.5]} 15...
Nfd7 {[%clk 0:03:33.1]} 16. Rg1 {[%clk 0:04:18.8]} 16... Bc5 {[%clk 0:03:21]}
17. Rf1 {[%clk 0:04:10.9]} 17... Re3 {[%clk 0:03:18.8]} 18. Bxe3 {[%clk
0:04:08.7]} 1-0

[Event "Live Chess"]
[Site "Chess.com"]
[Date "2023.05.21"]
[Round "-"]
[White "Biranidun"]
[Black "Tushinskiy"]
[Result "1-0"]
[WhiteElo "2536"]
[BlackElo "2212"]
[TimeControl "300"]
[EndTime "21:21:29 PDT"]
[Termination "Biranidun won by resignation"]

1. e4 {[%clk 0:04:59.2]} 1... e5 {[%clk 0:04:47.3]} 2. Nf3 {[%clk 0:04:57.4]}
2... d6 {[%clk 0:04:46.7]} 3. h3 {[%clk 0:04:53.4]} 3... c6 {[%clk 0:04:43.4]}
4. Nc3 {[%clk 0:04:52.2]} 4... Nf6 {[%clk 0:04:41.9]} 5. d4 {[%clk 0:04:51.6]}
5... Qc7 {[%clk 0:04:41.1]} 6. a4 {[%clk 0:04:48.9]} 6... Be7 {[%clk 0:04:39.5]}
7. Bc4 {[%clk 0:04:48.4]} 7... Nbd7 {[%clk 0:04:38.5]} 8. O-O {[%clk 0:04:47.8]}
8... O-O {[%clk 0:04:37.3]} 9. Re1 {[%clk 0:04:47.2]} 9... a6 {[%clk 0:04:35.2]}
10. a5 {[%clk 0:04:44.8]} 10... h6 {[%clk 0:04:32.1]} 11. Be3 {[%clk 0:04:43.7]}
11... Re8 {[%clk 0:04:31.3]} 12. Nh4 {[%clk 0:04:41.1]} 12... Nf8 {[%clk
0:04:29.9]} 13. dxe5 {[%clk 0:04:36.6]} 13... dxe5 {[%clk 0:04:28]} 14. Nf5
{[%clk 0:04:34.9]} 14... Bxf5 {[%clk 0:04:26.6]} 15. exf5 {[%clk 0:04:34.8]}
15... Rad8 {[%clk 0:04:18.8]} 16. Qf3 {[%clk 0:04:33.5]} 16... Qc8 {[%clk
0:04:13.9]} 17. Bb6 {[%clk 0:04:16.9]} 17... Rd7 {[%clk 0:04:12]} 18. Rxe5
{[%clk 0:04:15.2]} 18... Bb4 {[%clk 0:04:09.6]} 19. Rae1 {[%clk 0:03:42.8]}
19... Rxe5 {[%clk 0:04:05.5]} 20. Rxe5 {[%clk 0:03:42.7]} 20... Bxc3 {[%clk
0:04:04.1]} 21. Qxc3 {[%clk 0:03:42.6]} 21... Rd1+ {[%clk 0:03:57.8]} 22. Kh2
{[%clk 0:03:33.5]} 22... Qb8 {[%clk 0:03:56.4]} 23. g3 {[%clk 0:03:22.1]} 23...
N8d7 {[%clk 0:03:51]} 24. Re7 {[%clk 0:03:18.8]} 24... Nxb6 {[%clk 0:03:29.5]}
25. axb6 {[%clk 0:03:18.7]} 25... Rd7 {[%clk 0:03:23.8]} 26. Bxf7+ {[%clk
0:03:15.9]} 26... Kf8 {[%clk 0:03:22.8]} 27. Rxd7 {[%clk 0:03:14.9]} 27... Nxd7
{[%clk 0:03:22.1]} 28. Be6 {[%clk 0:03:12.7]} 28... Nf6 {[%clk 0:03:12.6]} 29.
Qc5+ {[%clk 0:03:11.4]} 29... Ke8 {[%clk 0:03:11.4]} 30. Kg2 {[%clk 0:02:46]}
30... h5 {[%clk 0:03:08.2]} 31. b4 {[%clk 0:02:43.2]} 31... h4 {[%clk
0:03:04.3]} 32. Qe3 {[%clk 0:02:32.7]} 32... hxg3 {[%clk 0:03:00.7]} 33. Bb3+
{[%clk 0:02:23.3]} 33... Kd8 {[%clk 0:02:51.7]} 34. Qd4+ {[%clk 0:01:28.4]}
34... Ke8 {[%clk 0:02:47.3]} 35. fxg3 {[%clk 0:01:21]} 35... Qd8 {[%clk
0:02:31.7]} 36. Qxd8+ {[%clk 0:01:13.5]} 36... Kxd8 {[%clk 0:02:31.6]} 37. c4
{[%clk 0:01:10.2]} 37... Ke7 {[%clk 0:02:22.4]} 38. c5 {[%clk 0:01:02.1]} 38...
Ne4 {[%clk 0:02:20.3]} 39. Bc4 {[%clk 0:00:47.2]} 39... Kf6 {[%clk 0:02:18.3]}
40. Bxa6 {[%clk 0:00:46.1]} 1-0

[Event "Live Chess"]
[Site "Chess.com"]
[Date "2023.05.21"]
[Round "-"]
[White "KeithArkell"]
[Black "ExIsambard"]
[Result "1-0"]
[WhiteElo "2556"]
[BlackElo "1918"]
[TimeControl "300"]
[EndTime "21:21:42 PDT"]
[Termination "KeithArkell won by checkmate"]

1. d4 {[%clk 0:04:57.6]} 1... Nf6 {[%clk 0:04:59.1]} 2. Nf3 {[%clk 0:04:56.2]}
2... d5 {[%clk 0:04:58]} 3. c4 {[%clk 0:04:55.2]} 3... c6 {[%clk 0:04:56.9]} 4.
Nc3 {[%clk 0:04:53.9]} 4... e6 {[%clk 0:04:55.9]} 5. cxd5 {[%clk 0:04:52.8]}
5... cxd5 {[%clk 0:04:55.1]} 6. Bg5 {[%clk 0:04:50.8]} 6... Be7 {[%clk
0:04:54.1]} 7. e3 {[%clk 0:04:50.2]} 7... a6 {[%clk 0:04:53.6]} 8. Bd3 {[%clk
0:04:49]} 8... h6 {[%clk 0:04:52.2]} 9. Bxf6 {[%clk 0:04:47.7]} 9... Bxf6 {[%clk
0:04:50.7]} 10. Rc1 {[%clk 0:04:47.6]} 10... Bd7 {[%clk 0:04:48.7]} 11. O-O
{[%clk 0:04:46.6]} 11... O-O {[%clk 0:04:47.8]} 12. Bb1 {[%clk 0:04:43.6]} 12...
g6 {[%clk 0:04:43.6]} 13. Re1 {[%clk 0:04:41.8]} 13... Kg7 {[%clk 0:04:42.1]}
14. e4 {[%clk 0:04:39.6]} 14... dxe4 {[%clk 0:04:41.3]} 15. Nxe4 {[%clk
0:04:38.5]} 15... Be7 {[%clk 0:04:36.4]} 16. Ne5 {[%clk 0:04:37.4]} 16... Nc6
{[%clk 0:04:33.7]} 17. Nc5 {[%clk 0:04:31.5]} 17... Be8 {[%clk 0:04:23.3]} 18.
Nxc6 {[%clk 0:04:22.9]} 18... Bxc6 {[%clk 0:04:21.1]} 19. Qg4 {[%clk 0:04:17.1]}
19... Bxc5 {[%clk 0:04:15.3]} 20. Rxe6 {[%clk 0:04:07.7]} 20... Qxd4 {[%clk
0:04:04.8]} 21. Rxg6+ {[%clk 0:04:05.5]} 21... Kh8 {[%clk 0:03:58.7]} 22. Rxh6#
{[%clk 0:04:03.9]} 1-0

[Event "Live Chess"]
[Site "Chess.com"]
[Date "2023.05.21"]
[Round "-"]
[White "Ayush_prahlad_Gupta"]
[Black "chessfiction"]
[Result "0-1"]
[WhiteElo "1773"]
[BlackElo "2365"]
[TimeControl "300"]
[EndTime "21:24:38 PDT"]
[Termination "chessfiction won by checkmate"]

1. e4 {[%clk 0:04:46.9]} 1... d5 {[%clk 0:04:59.1]} 2. exd5 {[%clk 0:04:45.6]}
2... c6 {[%clk 0:04:58.5]} 3. Nc3 {[%clk 0:04:43.1]} 3... Nf6 {[%clk 0:04:56.8]}
4. d4 {[%clk 0:04:42.9]} 4... cxd5 {[%clk 0:04:54.8]} 5. Nf3 {[%clk 0:04:42.8]}
5... Nc6 {[%clk 0:04:54.3]} 6. Be3 {[%clk 0:04:42.1]} 6... Bg4 {[%clk
0:04:53.6]} 7. Bd3 {[%clk 0:04:41.8]} 7... e6 {[%clk 0:04:51.1]} 8. h3 {[%clk
0:04:41]} 8... Bh5 {[%clk 0:04:49.7]} 9. g4 {[%clk 0:04:40]} 9... Bg6 {[%clk
0:04:49]} 10. Bxg6 {[%clk 0:04:38]} 10... hxg6 {[%clk 0:04:48.9]} 11. Ne5 {[%clk
0:04:36.4]} 11... Bb4 {[%clk 0:04:47.6]} 12. a3 {[%clk 0:04:34.7]} 12... Bxc3+
{[%clk 0:04:46.6]} 13. bxc3 {[%clk 0:04:34.6]} 13... Qa5 {[%clk 0:04:45.8]} 14.
Qd3 {[%clk 0:04:33.1]} 14... Ne4 {[%clk 0:04:44.3]} 15. Bd2 {[%clk 0:04:30.9]}
15... Nxe5 {[%clk 0:04:41.7]} 16. dxe5 {[%clk 0:04:29.1]} 16... Qc5 {[%clk
0:04:40]} 17. O-O {[%clk 0:04:24.3]} 17... O-O-O {[%clk 0:04:36.5]} 18. Kg2
{[%clk 0:04:20.8]} 18... Rh7 {[%clk 0:04:34.3]} 19. f3 {[%clk 0:04:10]} 19...
Nxd2 {[%clk 0:04:30.6]} 20. Qxd2 {[%clk 0:04:08.3]} 20... Rdh8 {[%clk
0:04:29.8]} 21. Rh1 {[%clk 0:04:06.5]} 21... Qc4 {[%clk 0:04:24.4]} 22. Rab1
{[%clk 0:04:03.3]} 22... b6 {[%clk 0:04:21.8]} 23. Kg3 {[%clk 0:03:44.7]} 23...
g5 {[%clk 0:04:19.4]} 24. Qxg5 {[%clk 0:03:35.9]} 24... Qxc3 {[%clk 0:04:18]}
25. Qe7 {[%clk 0:03:26]} 25... Qxe5+ {[%clk 0:04:14]} 26. Kf2 {[%clk 0:03:21.8]}
26... Rxh3 {[%clk 0:04:02.4]} 27. Qxa7 {[%clk 0:03:09.6]} 27... Qd4+ {[%clk
0:03:52.5]} 28. Kg2 {[%clk 0:03:07.3]} 28... Qd2+ {[%clk 0:03:50.7]} 29. Kf1
{[%clk 0:03:02.9]} 29... Rxh1# {[%clk 0:03:50.6]} 0-1

[Event "Live Chess"]
[Site "Chess.com"]
[Date "2023.05.21"]
[Round "-"]
[White "Doge_Dandolo"]
[Black "Bakunian2022"]
[Result "1-0"]
[WhiteElo "1930"]
[BlackElo "761"]
[TimeControl "300"]
[EndTime "21:24:55 PDT"]
[Termination "Doge_Dandolo won by resignation"]

1. Nf3 {[%clk 0:04:54]} 1... d5 {[%clk 0:04:56.2]} 2. c4 {[%clk 0:04:49]} 2...
c6 {[%clk 0:04:53.9]} 3. g3 {[%clk 0:04:47.3]} 3... Nf6 {[%clk 0:04:46.1]} 4.
Bg2 {[%clk 0:04:44.9]} 4... dxc4 {[%clk 0:04:43.1]} 5. a4 {[%clk 0:04:43.4]}
5... Bg4 {[%clk 0:04:40.6]} 6. Ne5 {[%clk 0:04:39.9]} 6... e6 {[%clk 0:04:36]}
7. O-O {[%clk 0:04:27.6]} 7... Bf5 {[%clk 0:04:25.6]} 8. Na3 {[%clk 0:04:22.7]}
8... Bxa3 {[%clk 0:04:13]} 9. Rxa3 {[%clk 0:04:20.6]} 9... O-O {[%clk
0:04:03.4]} 10. Nxc4 {[%clk 0:04:18.6]} 10... a6 {[%clk 0:03:40]} 11. d3 {[%clk
0:04:10.3]} 11... Nbd7 {[%clk 0:03:39]} 12. Bf4 {[%clk 0:04:05.6]} 12... b5
{[%clk 0:03:32.8]} 13. axb5 {[%clk 0:04:04.1]} 13... axb5 {[%clk 0:03:31.6]} 14.
Rxa8 {[%clk 0:04:02.3]} 14... Qxa8 {[%clk 0:03:30.4]} 15. Nd6 {[%clk 0:04:01.2]}
15... Nd5 {[%clk 0:03:12.8]} 16. Nxf5 {[%clk 0:03:50.9]} 16... exf5 {[%clk
0:03:11]} 17. Bd2 {[%clk 0:03:44.6]} 17... Qa2 {[%clk 0:03:03.9]} 18. Qc2 {[%clk
0:03:42.1]} 18... Re8 {[%clk 0:02:51]} 19. Bf3 {[%clk 0:03:37.4]} 19... h6
{[%clk 0:02:46.2]} 20. Rc1 {[%clk 0:03:30.3]} 20... Rc8 {[%clk 0:02:38.8]} 21.
b3 {[%clk 0:03:15.6]} 21... Qxc2 {[%clk 0:02:23.4]} 22. Rxc2 {[%clk 0:03:14.5]}
22... g5 {[%clk 0:02:18.2]} 23. Bxd5 {[%clk 0:03:12]} 23... Ra8 {[%clk
0:02:09.6]} 24. Bxc6 {[%clk 0:03:09.3]} 24... Ra1+ {[%clk 0:02:07.8]} 25. Kg2
{[%clk 0:03:07.6]} 25... Ne5 {[%clk 0:02:03.1]} 26. Bxb5 {[%clk 0:03:03.3]} 1-0